bitfinex-derivatives/quotes_ETHF0:USTF0_20230401
["timestamp","ask_amount","ask_price","bid_price","bid_amount"]
[1680359992972,0.824,1820.0,1819.6,5.0348]
[1680359993471,0.824,1820.0,1819.7,6.16353018]
[1680359994977,0.03903921,1819.9,1819.7,6.16353018]
[1680359997074,0.86303921,1819.9,1819.7,6.16353018]
[1680359997476,1.13803921,1819.9,1819.7,6.16353018]
[1680359997672,1.13560869,1819.9,1819.7,6.16353018]
[1680360002783,2.13560869,1819.9,1819.7,6.16353018]
[1680360003585,1.13560869,1819.9,1819.7,6.16353018]
[1680360003980,4.3028,1819.8,1819.7,6.16353018]
[1680360004384,4.87485552,1819.8,1819.7,6.16353018]
[1680360005485,1.66705552,1819.8,1819.7,6.16353018]
[1680360005685,1.095,1819.8,1819.7,6.16353018]
[1680360005883,1.66705552,1819.8,1819.7,6.16353018]
[1680360006283,1.72415516,1819.8,1819.7,6.16353018]
[1680360007391,4.35989964,1819.8,1819.7,6.16353018]
[1680360013193,4.90430999,1819.8,1819.7,6.16353018]
[1680360017198,4.35989964,1819.8,1819.7,6.16353018]
[1680360020003,4.35989964,1819.8,1819.3,2.099]
[1680360020193,1.0,1819.7,1819.3,1.099]
[1680360020499,1.05497455,1819.7,1819.3,1.099]
[1680360020800,0.05497455,1819.7,1819.4,5.99134177]
[1680360021098,0.05497455,1819.7,1819.5,1.0]
[1680360022198,0.05497455,1819.7,1819.6,6.13734429]
[1680360033503,0.05497455,1819.7,1819.6,9.34514429]
[1680360036707,0.62703007,1819.7,1819.6,9.34514429]
[1680360036911,0.05497455,1819.7,1819.6,9.34514429]
[1680360037113,0.62703007,1819.7,1819.6,9.34514429]
[1680360037410,0.03662156,1819.7,1819.6,9.34514429]
[1680360044920,0.57205552,1819.9,1819.6,10.44414429]
[1680360045121,0.57205552,1819.9,1819.8,4.2078]
[1680360045425,0.57205552,1819.9,1819.8,9.92409447]
[1680360045625,0.57205552,1820.0,1819.8,9.92409447]
[1680360045813,0.85931751,1820.1,1819.9,1.099]
[1680360046012,0.57271568,1820.2,1820.0,4.3068]
[1680360046217,0.57271568,1820.2,1820.0,14.94094938]
[1680360046522,0.57271568,1820.3,1820.2,2.197]
[1680360046722,1.43210731,1820.3,1820.2,1.099]
[1680360046922,0.85931751,1820.3,1820.2,7.25293621]
[1680360047220,0.85931751,1820.3,1820.2,9.36173621]
[1680360047518,1.43210232,1820.3,1820.2,9.36173621]
[1680360047718,0.57278481,1820.3,1820.2,9.36173621]
[1680360048115,1.43210232,1820.4,1820.2,9.36173621]
[1680360048315,0.57278481,1820.4,1820.2,9.36173621]
[1680360048520,0.57278481,1820.4,1820.3,1.0]
[1680360048921,0.85931751,1820.4,1820.3,7.13912018]
[1680360049423,0.57191135,1820.4,1820.3,7.13912018]
[1680360049824,0.57191135,1820.4,1820.3,6.13912018]
[1680360051629,1.43122886,1820.5,1820.3,6.13912018]
[1680360051930,0.57191135,1820.5,1820.3,7.13912018]
[1680360052626,0.57191135,1820.5,1820.4,4.2078]
[1680360052927,0.57191135,1820.5,1820.4,10.37975107]
[1680360053327,0.57191135,1820.5,1820.4,9.37975107]
[1680360054733,1.67091135,1820.6,1820.4,9.37975107]
[1680360055528,0.57191135,1820.6,1820.4,10.47875107]
[1680360055922,1.099,1820.5,1820.4,6.17195107]
[1680360056427,1.099,1820.5,1820.3,0.14617245]
[1680360056726,2.099,1820.5,1820.1,1.0]
[1680360056926,2.099,1820.5,1820.3,6.27775737]
[1680360057228,1.099,1820.5,1820.2,9.02820624]
[1680360057629,1.099,1820.5,1820.3,1.0]
[1680360058029,0.57191135,1820.6,1820.4,7.36784576]
[1680360059528,0.57191135,1820.7,1820.5,1.0]
[1680360060029,0.57191135,1820.7,1820.6,5.96481517]
[1680360060533,0.57191135,1820.7,1820.5,5.98019106]
[1680360061030,0.57191135,1820.7,1820.5,6.98019106]
[1680360061237,0.57191135,1820.7,1820.5,5.98019106]
[1680360063633,1.1196678,1820.8,1820.5,5.98019106]
[1680360063828,1.1196678,1820.8,1820.6,1.0]
[1680360064231,1.1196678,1820.8,1820.7,6.25798824]
[1680360064533,0.54775645,1820.8,1820.7,6.25798824]
[1680360064728,5.73402886,1820.9,1820.7,6.25798824]
[1680360066530,4.87471135,1820.9,1820.7,6.25798824]
[1680360066732,5.43230204,1820.9,1820.7,6.25798824]
[1680360066929,4.33730204,1820.9,1820.7,6.25798824]
[1680360068326,1.12950204,1820.9,1820.7,6.25798824]
[1680360068531,0.55759069,1820.9,1820.7,6.25798824]
[1680360068726,1.66691135,1821.0,1820.8,1.0]
[1680360069132,1.66691135,1821.0,1820.9,6.00657728]
[1680360070239,0.57191135,1821.0,1820.9,6.00657728]
[1680360071437,0.57191135,1821.0,1820.8,9.18866253]
[1680360072454,1.43122886,1821.1,1820.8,9.18866253]
[1680360072643,1.98959303,1821.1,1820.8,9.18866253]
[1680360073050,0.57191135,1821.0,1820.8,9.18866253]
[1680360073249,2.98959303,1821.1,1820.8,9.18866253]
[1680360073450,2.98959303,1821.1,1820.8,5.98086253]
[1680360073656,1.66091135,1821.0,1820.8,5.98086253]
[1680360073947,2.66091135,1821.0,1820.5,2.099]
[1680360074144,1.66091135,1821.0,1820.7,5.71276128]
[1680360074352,1.66091135,1821.0,1820.6,1.70893025]
[1680360074554,1.66091135,1821.0,1820.5,2.099]
[1680360074753,1.0,1820.9,1820.7,5.98364048]
[1680360074949,2.66091135,1821.0,1820.7,5.98364048]
[1680360075151,2.66091135,1821.0,1820.6,5.93594252]
[1680360075450,1.66091135,1821.0,1820.5,2.099]
[1680360075651,3.52022886,1821.0,1820.6,5.71199675]
[1680360076246,2.66091135,1821.0,1820.6,5.71199675]
[1680360076754,3.77971135,1820.9,1820.6,5.71199675]
[1680360076955,4.87871135,1820.9,1820.6,5.71199675]
[1680360077358,4.3068,1820.9,1820.6,5.71199675]
[1680360077549,4.87871135,1820.9,1820.6,5.71199675]
[1680360078259,1.099,1820.9,1820.6,5.71199675]
[1680360080051,1.67091135,1820.9,1820.6,5.71199675]
[1680360081457,4.87871135,1820.9,1820.6,5.71199675]
[1680360081661,1.099,1820.8,1820.4,3.2078]
[1680360081857,1.0,1820.7,1820.4,3.2078]
[1680360082059,1.095,1820.6,1820.4,3.2078]
[1680360082558,1.095,1820.6,1820.5,6.1564808]
[1680360083261,1.095,1820.6,1820.2,3.2078]
[1680360083457,1.095,1820.4,1820.2,3.2078]
[1680360083959,1.095,1820.4,1820.3,6.28621913]
[1680360086961,1.099,1820.5,1820.3,6.28621913]
[1680360087557,1.67091135,1820.5,1820.3,6.28621913]
[1680360089458,2.53022886,1820.5,1820.3,6.28621913]
[1680360090764,0.57191135,1820.4,1820.3,6.28621913]
[1680360091366,1.43122886,1820.6,1820.3,7.38521913]
[1680360091665,0.57191135,1820.5,1820.4,4.3068]
[1680360091864,0.57191135,1820.6,1820.4,5.3068]
[1680360092162,0.57191135,1820.6,1820.5,6.79585708]
[1680360092365,0.57191135,1820.6,1820.5,1.0]
[1680360092660,0.57191135,1820.6,1820.5,7.16061306]
[1680360095067,1.43122886,1820.6,1820.5,7.16061306]
[1680360096162,1.43122886,1820.6,1820.5,6.16061306]
[1680360096465,1.43175509,1820.6,1820.5,6.16061306]
[1680360096666,0.85931751,1820.6,1820.5,6.16061306]
[1680360097069,1.43175487,1820.6,1820.5,6.16061306]
[1680360097266,1.43175487,1820.7,1820.5,6.16061306]
[1680360097571,1.43175487,1820.7,1820.6,4.2078]
[1680360097962,1.43175487,1820.7,1820.6,10.46219676]
[1680360098163,0.57243736,1820.7,1820.6,10.46219676]
[1680360102462,0.57243736,1820.7,1820.6,9.46219676]
[1680360102864,1.43175487,1820.7,1820.6,9.46219676]
[1680360103474,0.85931751,1820.7,1820.6,9.46219676]
[1680360104274,16.99977602,1819.7,1819.5,2.30162899]
[1680360104565,0.82983364,1818.4,1818.0,0.15]
[1680360104776,4.03763364,1818.1,1818.0,0.07321]
[1680360105071,6.32283364,1817.7,1816.9,1.095]
[1680360105263,6.32283364,1817.7,1816.7,6.08207013]
[1680360105264,3.2078,1817.2,1816.7,3.2078]
[1680360105462,1.095,1816.9,1816.7,3.2078]
[1680360105663,1.089,1816.8,1816.5,12.642]
[1680360106069,1.099,1817.0,1816.5,9.4342]
[1680360106268,3.2078,1816.9,1816.5,12.642]
[1680360106459,1.92883364,1817.0,1816.7,3.2078]
[1680360106664,1.089,1817.1,1816.7,3.2078]
[1680360106866,0.82983364,1817.3,1816.9,3.2078]
[1680360107070,1.92883364,1817.3,1816.8,7.28635027]
[1680360107371,1.095,1817.1,1817.0,0.33600049]
[1680360107579,1.92483364,1817.1,1816.9,5.95586318]
[1680360107766,1.095,1817.0,1816.8,1.0]
[1680360107963,1.92483364,1817.0,1816.8,1.0]
[1680360108169,1.92483364,1817.0,1816.6,1.0]
[1680360108668,1.095,1817.0,1816.8,1.0]
[1680360108870,1.92483364,1817.0,1816.8,1.0]
[1680360109073,1.92483364,1817.0,1816.9,5.78846513]
[1680360109374,1.92483364,1817.0,1816.6,1.0]
[1680360109576,3.2078,1816.9,1816.6,1.0]
[1680360109969,3.2078,1816.9,1816.7,6.01786274]
[1680360110164,0.10187352,1816.8,1816.7,6.01786274]
[1680360110572,1.92483364,1817.0,1816.7,6.01786274]
[1680360110876,0.82983364,1816.9,1816.8,1.0]
[1680360111077,0.82983364,1816.9,1816.7,6.01786274]
[1680360111078,0.93170943,1816.9,1816.7,6.01786274]
[1680360111278,0.93170943,1816.9,1816.8,0.814184]
[1680360111485,0.93170943,1816.9,1816.5,13.60436636]
[1680360111672,0.93170943,1816.9,1816.7,6.195704]
[1680360111976,0.93170943,1816.9,1816.8,1.0]
[1680360112477,0.93170943,1816.9,1816.8,7.32645386]
[1680360112672,0.93170943,1816.9,1816.8,6.32645386]
[1680360112978,0.93170943,1816.9,1816.8,1.0]
[1680360113478,0.82983364,1817.1,1816.9,0.82912421]
[1680360113672,5.13663364,1817.4,1816.9,5.13592421]
[1680360113874,5.13663364,1817.4,1817.0,5.91252004]
[1680360114072,5.13663364,1817.4,1817.1,1.0]
[1680360114470,5.13663364,1817.4,1817.2,5.85343692]
[1680360115168,0.82983364,1817.2,1817.1,5.76979134]
[1680360116068,0.08915626,1817.2,1817.1,5.76979134]
[1680360116476,4.3068,1817.4,1817.1,5.76979134]
[1680360116676,0.82983364,1817.2,1817.1,5.76979134]
[1680360116976,3.2078,1817.7,1817.2,0.829]
[1680360117181,4.3028,1817.7,1817.2,0.829]
[1680360117471,4.3028,1817.7,1817.3,5.76466681]
[1680360117675,4.3028,1817.7,1817.4,1.0]
[1680360118067,4.3028,1817.7,1817.6,1.0]
[1680360118473,5.3938,1817.7,1817.5,5.84476908]
[1680360118776,1.099,1817.6,1817.2,0.829]
[1680360118977,1.095,1817.4,1817.2,0.829]
[1680360119379,1.095,1817.4,1817.3,6.34815715]
[1680360119973,3.2078,1817.5,1817.4,1.095]
[1680360120183,1.099,1817.6,1817.4,1.095]
[1680360120484,1.099,1817.6,1817.4,7.30974267]
[1680360120980,0.04184736,1817.5,1817.4,7.30974267]
[1680360122881,4.736e-05,1817.5,1817.4,7.30974267]
[1680360123190,4.3068,1817.7,1817.4,7.30974267]
[1680360123791,3.2078,1817.9,1817.5,1.099]
[1680360124179,3.2078,1817.9,1817.6,6.67280022]
[1680360125073,3.2078,1817.9,1817.7,1.0]
[1680360125477,3.2078,1817.9,1817.8,6.28241974]
[1680360126788,3.2078,1817.9,1817.8,7.28241974]
[1680360127181,3.2446845,1817.9,1817.8,7.28241974]
[1680360128981,3.2078,1817.9,1817.8,7.28241974]
[1680360131190,3.2078,1817.9,1817.8,6.28241974]
[1680360132181,3.2078,1817.9,1817.8,7.28241974]
[1680360132487,3.2078,1817.9,1817.8,6.28241974]
[1680360132889,3.2078,1817.9,1817.6,6.28901364]
[1680360133390,3.2078,1817.9,1817.7,1.0]
[1680360133591,3.2078,1817.9,1817.6,7.28901364]
[1680360133791,3.2078,1817.9,1817.8,6.20484473]
[1680360133990,1.0,1817.8,1817.7,6.06803951]
[1680360134286,5.34171186,1817.8,1817.7,6.06803951]
[1680360134485,7.015,1817.7,1816.9,0.82912421]
[1680360134697,5.0,1816.2,1816.0,0.15]
[1680360134991,5.0,1816.2,1816.0,0.01582235]
[1680360134992,5.4018,1816.1,1816.0,0.01582235]
[1680360135191,8.7008,1815.9,1814.8,5.1137]
[1680360135391,1.099,1815.4,1814.6,8.2078]
[1680360135687,4.3068,1815.1,1814.4,3.2078]
[1680360135893,4.3028,1815.1,1814.3,5.1289]
[1680360136084,3.2078,1815.1,1814.6,1.095]
[1680360136288,1.091,1815.5,1814.4,1.099]
[1680360136289,4.2968,1815.7,1815.1,1.66808589]
[1680360136483,3.2078,1815.7,1815.1,1.66808589]
[1680360136689,3.2078,1816.1,1815.2,5.77963668]
[1680360136995,1.095,1815.8,1815.3,2.099]
[1680360137192,4.3068,1816.1,1815.5,1.098]
[1680360137484,2.199,1815.6,1815.4,5.73538878]
[1680360137697,2.203,1815.9,1815.1,1.66808589]
[1680360137991,3.2078,1816.0,1815.1,1.66808589]
[1680360137992,3.2078,1815.8,1815.6,5.86786096]
[1680360138190,2.203,1815.6,1815.2,0.30712439]
[1680360138485,3.2078,1815.8,1815.4,2.202]
[1680360138692,5.4108,1816.0,1815.4,2.202]
[1680360138885,5.4108,1816.4,1815.8,5.4108]
[1680360139084,3.2078,1816.4,1816.1,2.19]
[1680360139390,3.2078,1816.4,1816.2,0.06123082]
[1680360139791,0.04776444,1816.3,1816.2,0.06123082]
[1680360140494,0.04776444,1816.3,1816.2,1.06123082]
[1680360140991,0.00076444,1816.3,1816.2,3.26423082]
[1680360141191,4.62973427,1816.8,1816.2,6.47203082]
[1680360141389,4.62973427,1816.8,1816.5,2.19]
[1680360141887,4.62973427,1816.8,1816.7,1.0]
[1680360142195,4.62973427,1816.8,1816.7,1.19756114]
[1680360142591,1.42193427,1816.8,1816.7,1.19756114]
[1680360143093,1.42193427,1816.8,1816.7,3.40056114]
[1680360143482,3.2078,1817.1,1816.7,3.40056114]
[1680360143783,3.2078,1817.3,1817.0,2.19]
[1680360144195,3.2078,1817.3,1817.1,5.93875822]
[1680360144390,3.2078,1817.3,1817.2,1.0]
[1680360144590,3.2078,1817.3,1817.1,5.93875822]
[1680360144891,3.2078,1817.3,1817.2,7.06943194]
[1680360145097,3.2078,1817.3,1817.1,6.05480644]
[1680360145284,3.2078,1817.3,1816.8,8.3242]
[1680360145285,3.2078,1817.3,1817.2,5.87955916]
[1680360146394,3.2078,1817.3,1817.1,6.47052896]
[1680360146790,3.2078,1817.3,1817.2,6.37011445]
[1680360146993,3.2078,1817.3,1817.1,1.0]
[1680360147192,3.2078,1817.3,1817.2,6.25157205]
[1680360147791,3.2078,1817.5,1817.2,6.25157205]
[1680360147994,3.2078,1817.5,1817.3,1.0]
[1680360148297,3.2078,1817.5,1817.2,6.25157205]
[1680360148494,2.203,1817.4,1817.2,6.25157205]
[1680360148691,3.2078,1817.3,1817.2,6.25157205]
[1680360149699,5.3988,1817.3,1816.8,4.7944]
[1680360149999,2.203,1817.2,1816.8,4.7944]
[1680360150197,3.2078,1817.3,1816.9,1.0]
[1680360150500,3.2078,1817.3,1816.9,7.17003675]
[1680360150795,3.2078,1817.3,1817.0,1.0]
[1680360151207,3.2078,1817.3,1817.1,5.62552209]
[1680360151795,3.2078,1817.3,1817.2,1.0]
[1680360151996,3.2078,1817.3,1817.1,5.62552209]
[1680360152697,3.2078,1817.3,1817.2,1.0]
[1680360153098,5.98136385,1817.6,1817.2,7.05757308]
[1680360153297,3.77836385,1817.6,1817.2,9.26057308]
[1680360154588,3.2078,1817.6,1817.2,9.26057308]
[1680360154794,3.77836385,1817.6,1817.2,9.26057308]
[1680360154993,3.77836385,1817.6,1817.2,8.26057308]
[1680360155194,3.2078,1817.6,1817.3,1.0]
[1680360155396,3.77836385,1817.6,1817.3,1.0]
[1680360155591,3.77836385,1817.6,1817.4,6.29344994]
[1680360155992,3.77836385,1817.6,1817.3,5.95845497]
[1680360156995,5.97736385,1817.6,1817.3,5.95845497]
[1680360157603,5.97736385,1817.6,1817.2,6.37670473]
[1680360158490,3.2078,1817.4,1817.2,6.37670473]
[1680360158695,5.4108,1817.4,1817.2,6.37670473]
[1680360158896,2.203,1817.3,1817.2,6.37670473]
[1680360159291,2.203,1817.3,1816.8,4.7944]
[1680360159494,5.4108,1817.2,1816.8,4.7944]
[1680360159699,5.4108,1817.2,1816.8,5.7944]
[1680360159905,5.4108,1817.2,1816.9,5.87283795]
[1680360160197,5.4108,1817.2,1816.9,6.87283795]
[1680360160401,5.4108,1817.2,1816.9,5.87283795]
[1680360161099,5.4108,1817.2,1816.9,6.87283795]
[1680360161306,5.4108,1817.2,1816.9,5.87283795]
[1680360164102,5.4108,1817.2,1817.0,1.0]
[1680360164295,5.4108,1817.2,1816.9,6.87283795]
[1680360164501,5.4108,1817.2,1817.1,5.80471561]
[1680360164699,5.4108,1817.2,1817.0,6.17796365]
[1680360166005,3.2078,1817.2,1817.1,1.0]
[1680360166505,3.2078,1817.2,1817.1,6.15261289]
[1680360166897,3.2078,1817.2,1817.0,6.79168213]
[1680360167092,5.4108,1817.4,1817.0,6.79168213]
[1680360167502,5.4108,1817.4,1817.0,5.79168213]
[1680360167699,3.2078,1817.2,1817.0,5.79168213]
[1680360167899,3.2078,1817.2,1816.8,4.7944]
[1680360168105,5.4108,1816.9,1816.8,4.7944]
[1680360170405,5.4108,1816.9,1816.7,5.0472]
[1680360170615,6.979,1816.8,1815.9,10.2556]
[1680360170905,2.203,1816.4,1815.9,10.2556]
[1680360171109,2.203,1816.4,1816.0,1.0]
[1680360171295,3.2078,1816.5,1816.0,9.13911996]
[1680360173714,1.0,1816.9,1816.4,2.202]
[1680360173715,3.2078,1816.9,1816.4,2.202]
[1680360173904,3.2078,1816.7,1816.4,2.202]
[1680360174211,3.2078,1816.7,1816.5,6.89020315]
[1680360175111,3.2078,1816.7,1816.5,5.89020315]
[1680360175714,3.2078,1816.7,1816.4,5.92899643]
[1680360176011,3.2078,1816.5,1816.2,3.202]
[1680360176411,3.2078,1816.5,1816.4,6.13959995]
[1680360176712,3.2078,1816.5,1816.3,1.0]
[1680360177016,3.2078,1816.5,1816.3,7.38589999]
[1680360177507,3.2078,1816.7,1816.3,7.38589999]
[1680360177707,3.2078,1816.7,1816.4,2.19]
[1680360177904,3.2078,1816.5,1816.3,7.38589999]
[1680360178104,3.2078,1816.5,1816.3,1.0]
[1680360178313,3.2078,1816.5,1816.4,6.22953431]
[1680360179613,3.2078,1816.6,1816.4,6.22953431]
[1680360180908,0.03346974,1816.5,1816.4,6.22953431]
[1680360181309,0.03346974,1816.5,1816.3,5.92848523]
[1680360181503,0.03346974,1816.5,1816.4,1.0]
[1680360181817,0.03346974,1816.5,1816.4,6.78676727]
[1680360182009,3.2078,1816.6,1816.4,6.78676727]
[1680360182402,3.2078,1816.6,1816.4,5.78676727]
[1680360183914,3.2078,1816.6,1816.3,6.06486799]
[1680360184215,3.2078,1816.6,1816.4,1.0]
[1680360184720,3.2078,1816.6,1816.5,5.78013214]
[1680360185313,3.77836385,1816.9,1816.5,7.97013214]
[1680360185517,3.2078,1816.9,1816.8,2.203]
[1680360185912,0.57056385,1817.0,1816.8,8.0476183]
[1680360186112,0.57056385,1817.0,1816.9,1.0]
[1680360186318,3.77836385,1817.0,1816.9,1.0]
[1680360186519,3.77836385,1817.0,1816.9,6.31506759]
[1680360187315,3.2078,1817.0,1816.9,8.50506759]
[1680360187621,0.57056385,1817.2,1817.0,3.207]
[1680360188020,0.57056385,1817.2,1817.1,0.73841163]
[1680360189320,0.57056385,1817.3,1817.1,0.73841163]
[1680360189721,3.77836385,1817.4,1817.2,2.203]
[1680360189911,3.77836385,1817.4,1817.3,1.0]
[1680360190117,3.77836385,1817.4,1817.3,6.934753]
[1680360191519,3.2078,1817.4,1817.3,6.934753]
[1680360192425,3.2078,1817.4,1817.3,9.124753]
[1680360194532,0.57056385,1817.5,1817.3,9.124753]
[1680360194824,4.63420962,1817.6,1817.3,9.124753]
[1680360195226,0.57056385,1817.5,1817.3,9.124753]
[1680360195525,3.77836385,1817.6,1817.3,9.124753]
[1680360196831,1.42640962,1817.7,1817.5,2.203]
[1680360197133,3.2078,1817.8,1817.3,12.427753]
[1680360197134,0.57056385,1817.8,1817.6,8.50652719]
[1680360197434,1.42640962,1817.9,1817.7,3.19]
[1680360197630,0.57056385,1817.9,1817.7,3.19]
[1680360197837,4.06364577,1818.0,1817.7,9.03068667]
[1680360197838,3.77836385,1818.0,1817.7,9.03068667]
[1680360198133,3.77836385,1818.0,1817.7,3.19]
[1680360198434,3.77836385,1818.0,1817.8,7.29540367]
[1680360198733,3.2078,1818.0,1817.8,7.29540367]
[1680360199725,0.57056385,1818.1,1817.8,7.29540367]
[1680360200236,3.2078,1818.0,1817.8,7.29540367]
[1680360201937,3.2078,1818.0,1817.8,6.29540367]
[1680360202335,3.77836385,1818.0,1817.8,6.29540367]
[1680360204637,3.2078,1818.0,1817.8,6.29540367]
[1680360204841,3.77836385,1818.0,1817.8,6.29540367]
[1680360205536,1.0,1817.8,1817.6,4.7987]
[1680360205737,3.2078,1817.7,1817.6,4.7987]
[1680360206137,3.2078,1817.7,1817.6,11.16405028]
[1680360206332,3.2078,1817.7,1817.6,6.36535028]
[1680360206742,3.2078,1817.7,1817.5,5.8734717]
[1680360209137,3.2078,1817.9,1817.5,8.0754717]
[1680360209336,3.2078,1817.9,1817.6,1.0]
[1680360209736,3.2078,1817.7,1817.6,1.0]
[1680360209938,3.2078,1817.7,1817.5,2.202]
[1680360210143,3.2078,1817.7,1817.6,7.34738642]
[1680360210343,3.2078,1817.7,1817.6,6.34738642]
[1680360211638,3.2078,1817.7,1817.6,7.34738642]
[1680360213442,3.2078,1817.7,1817.6,6.34738642]
[1680360214042,4.2078,1817.9,1817.6,6.34738642]
[1680360214243,3.2078,1817.9,1817.6,6.34738642]
[1680360214446,3.2078,1817.7,1817.6,6.34738642]
[1680360214745,3.2078,1817.9,1817.6,7.34738642]
[1680360216449,3.2078,1817.7,1817.6,6.34738642]
[1680360216946,3.2078,1817.7,1817.5,6.19264733]
[1680360217340,3.2078,1817.7,1817.4,5.81887297]
[1680360217539,3.2078,1817.5,1817.4,5.81887297]
[1680360223150,4.2078,1817.5,1817.4,5.81887297]
[1680360224052,3.2078,1817.5,1817.4,5.81887297]
[1680360224352,3.77836385,1817.5,1817.4,5.81887297]
[1680360224549,4.77836385,1817.5,1817.4,5.81887297]
[1680360224858,4.2078,1817.5,1817.4,5.81887297]
[1680360225357,4.77836385,1817.5,1817.4,5.81887297]
[1680360227058,6.98136385,1817.5,1817.4,5.81887297]
[1680360227359,5.87836385,1817.5,1817.4,5.81887297]
[1680360228761,4.87836385,1817.5,1817.4,5.81887297]
[1680360229061,5.16364577,1817.5,1817.4,5.81887297]
[1680360230559,4.3078,1817.5,1817.4,5.81887297]
[1680360231158,5.16322973,1817.5,1817.4,5.81887297]
[1680360233160,4.06322973,1817.5,1817.4,5.81887297]
[1680360234056,0.5705272,1817.6,1817.4,1.1]
[1680360234357,0.5705272,1817.7,1817.5,2.089]
[1680360234761,0.5705272,1817.7,1817.6,6.32759619]
[1680360235157,0.57066656,1817.7,1817.6,6.32759619]
[1680360235358,0.57066656,1817.7,1817.6,7.32759619]
[1680360235858,4.34967813,1817.8,1817.6,6.32759619]
[1680360236463,3.2078,1817.8,1817.6,6.32759619]
[1680360236664,4.34967813,1817.8,1817.6,6.32759619]
[1680360237052,3.2078,1817.8,1817.6,6.32759619]
[1680360237253,4.34967813,1817.8,1817.6,6.32759619]
[1680360237762,4.34967813,1817.8,1817.5,6.01368372]
[1680360237962,0.57065487,1817.6,1817.5,6.01368372]
[1680360239365,0.57065487,1817.7,1817.5,6.01368372]
[1680360240061,0.57065487,1817.6,1817.5,6.01368372]
[1680360240455,0.57065487,1817.7,1817.5,6.01368372]
[1680360240964,0.57065487,1817.6,1817.5,6.01368372]
[1680360241162,0.57065487,1817.7,1817.5,6.01368372]
[1680360242962,0.57065487,1817.7,1817.6,1.0]
[1680360243357,0.57065487,1817.7,1817.6,7.13083218]
[1680360246468,0.00065487,1817.7,1817.6,7.13083218]
[1680360246673,1.14187813,1818.1,1817.7,1.0]
[1680360246866,1.14187813,1818.1,1818.0,1.1]
[1680360247367,1.14187813,1818.1,1818.0,1.49961679]
[1680360247763,4.34967813,1818.2,1818.0,1.49961679]
[1680360247971,4.34967813,1818.2,1818.1,1.09]
[1680360248270,4.34967813,1818.2,1818.1,7.23423101]
[1680360249766,3.69793001,1818.7,1818.1,7.23423101]
[1680360249767,4.34967813,1818.4,1818.1,7.23423101]
[1680360249968,4.34967813,1818.4,1818.3,1.09]
[1680360250471,4.34894524,1818.4,1818.3,6.60127859]
[1680360250863,1.14114524,1818.5,1818.3,6.60127859]
[1680360251172,1.14114524,1818.5,1818.4,2.1]
[1680360251573,4.34894524,1818.6,1818.4,6.88886831]
[1680360251874,4.34894524,1818.6,1818.5,1.09]
[1680360252067,4.34894524,1818.6,1818.5,2.09]
[1680360252268,4.34894524,1818.6,1818.5,7.87105423]
[1680360252769,3.2078,1818.6,1818.5,6.87105423]
[1680360254068,1.14114524,1818.7,1818.5,6.87105423]
[1680360254273,1.14114524,1818.7,1818.6,1.0]
[1680360254662,4.34894524,1818.8,1818.6,7.04487928]
[1680360257173,4.34894524,1818.8,1818.6,8.14487928]
[1680360257872,3.2078,1818.8,1818.6,8.14487928]
[1680360259074,3.2078,1818.8,1818.7,0.03261561]
[1680360259372,3.2078,1818.8,1818.7,5.91419327]
[1680360259671,3.2078,1819.0,1818.7,7.00319327]
[1680360259873,3.2078,1818.8,1818.7,5.34025185]
[1680360260169,5.44894524,1818.8,1818.2,1.0]
[1680360260375,1.099,1818.5,1818.2,1.0]
[1680360260768,1.099,1818.5,1818.3,5.97248692]
[1680360260970,3.2078,1818.6,1818.4,1.0]
[1680360261165,4.34894524,1818.8,1818.4,2.09]
[1680360261364,3.2078,1818.8,1818.5,5.94033023]
[1680360262066,3.2078,1818.6,1818.5,5.94033023]
[1680360262470,3.24114524,1818.9,1818.5,5.94033023]
[1680360262471,3.2078,1818.8,1818.5,7.02933023]
[1680360262675,3.2078,1818.8,1818.6,1.1]
[1680360262870,3.2078,1818.8,1818.6,2.1]
[1680360263080,3.2078,1819.0,1818.7,6.01184615]
[1680360263281,3.2078,1819.0,1818.8,1.089]
[1680360263670,3.2078,1819.0,1818.9,5.95949974]
[1680360267478,3.2078,1819.0,1818.8,1.08633665]
[1680360267978,3.2078,1819.0,1818.8,0.08633665]
[1680360268475,1.096,1818.9,1818.5,4.898]
[1680360268681,3.2078,1818.7,1818.5,4.898]
[1680360268882,3.2078,1818.7,1818.6,1.0]
[1680360269179,3.2078,1818.9,1818.7,1.0]
[1680360269480,3.2078,1818.9,1818.8,5.83617294]
[1680360273079,3.2078,1818.9,1818.7,6.95179893]
[1680360273379,3.2078,1818.9,1818.8,1.0]
[1680360273680,3.2078,1818.9,1818.8,7.23227063]
[1680360273884,3.2078,1818.9,1818.8,6.23227063]
[1680360276481,1.14114524,1819.2,1818.9,5.493]
[1680360276675,5.77535485,1819.3,1819.1,1.089]
[1680360276871,1.14114524,1819.4,1819.2,1.1]
[1680360277083,5.77535485,1819.5,1819.2,1.2839273]
[1680360277284,1.14114524,1819.4,1819.2,1.1]
[1680360277484,1.14114524,1819.4,1819.3,6.26123265]
[1680360279284,4.63420961,1819.5,1819.3,6.26123265]
[1680360279977,1.13752547,1819.4,1819.3,6.26123265]
[1680360280381,1.13752547,1819.4,1819.3,6.10975858]
[1680360280576,5.73320961,1819.5,1819.3,6.10975858]
[1680360281185,5.73320961,1819.5,1819.4,0.03493902]
[1680360281381,6.41484554,1819.5,1819.3,6.10975858]
[1680360281685,1.42640961,1819.4,1819.3,6.10975858]
[1680360282487,5.73320961,1819.5,1819.3,6.10975858]
[1680360282876,1.42640961,1819.4,1819.3,6.10975858]
[1680360283292,5.73320961,1819.5,1819.3,6.10975858]
[1680360283979,5.73320961,1819.5,1819.1,1.1]
[1680360284184,1.13776999,1819.3,1819.1,1.1]
[1680360284689,1.13776999,1819.3,1819.2,6.32123017]
[1680360286988,1.13776999,1819.3,1819.2,7.42123017]
[1680360287385,1.13776999,1819.3,1819.2,1.1]
[1680360287590,1.13776999,1819.3,1819.2,8.04242758]
[1680360290390,1.05626999,1819.3,1819.2,8.04242758]
[1680360291689,2.10803377,1819.4,1819.2,8.04242758]
[1680360291887,2.10803377,1819.4,1819.3,2.1]
[1680360292091,2.78965743,1819.4,1819.3,2.1]